Cogmind - Beta 12 @@@ ROGUE MODE // 2023.05.17 @ 23:51:52 Player: puncake Result: Destroyed by G-47 Trooper with Particle Gun Performance ------------- Evolutions (3) 1500 Regions Visited (4) 800 Robots Destroyed (58) 290 Value Destroyed (1320) 1320 Prototype IDs (4) 80 Alien Tech Used (0) 0 Bonus (0) 0 TOTAL SCORE: 3990 Bonus ------- None Cogmind --------- Core Integrity 0/700 Matter 277/300 Energy 100/100 System Corruption 5% Temperature Cool (27) Movement Core (50) Location -7/Factory Parts ------- > --- POWER (2) -------- (None) > --- PROPULSION (3) --- (None) > --- UTILITY (6) ------ Advanced Visual Processing Unit Improved Signal Interpreter Terrain Scan Processor Advanced Targeting Computer > --- WEAPON (2) ------- (None) > --- INVENTORY (5) ---- (None) Peak State ------------ > --- POWER ------------ Light Ion Engine > --- PROPULSION ------- Aluminum Leg > --- UTILITY ---------- Disposable Heat Sink Advanced Visual Processing Unit Improved Signal Interpreter Terrain Scan Processor Advanced Targeting Computer Kinecellerator > --- WEAPON ----------- Heavy EM Shotgun Heavy EM Shotgun > --- INVENTORY -------- Medium Laser Assault Rifle [Rating: 27] Favorites ----------- Power Light Ion Engine Engine Light Ion Engine Propulsion Light Treads Treads Light Treads Leg Aluminum Leg Wheel Compact Wheel Hover Unit Backup Propulsion I Flight Unit Improved VTOL Module Utility Disposable Heat Sink Device Disposable Heat Sink Storage Large Storage Unit Processor Advanced Visual Processing Unit Weapon Medium Laser Energy Gun Medium Laser Ballistic Gun Assault Rifle Launcher Proton Missile Launcher Build | -11 -10 -9 -8 -7 ------- Run | Jun Mat Mat Mat Fac Slots Evolved 6 | . . 2 2 2 Power 1 | . . . 1 . Propulsion 1 | . . 1 . . Utility 4 | . . 1 1 2 Weapon . | . . . . . Parts Attached 63 | 6 2 10 40 5 Power 10 | 1 . 3 6 . Engine 10 | 1 . 3 6 . Core . | . . . . . Reactor . | . . . . . Propulsion 15 | 2 . 2 11 . Treads 5 | 2 . 2 1 . Leg 4 | . . . 4 . Wheel 1 | . . . 1 . Hover 4 | . . . 4 . Flight 1 | . . . 1 . Utility 15 | 1 2 1 8 3 Device 7 | . 1 1 3 2 Storage 2 | 1 1 . . . Processor 6 | . . . 5 1 Hackware . | . . . . . Protection . | . . . . . Artifact . | . . . . . Weapon 23 | 2 . 4 15 2 Energy Gun 19 | 2 . 4 12 1 Energy Cannon . | . . . . . Ballistic Gun 1 | . . . . 1 Ballistic Cannon . | . . . . . Launcher 3 | . . . 3 . Special Weapon . | . . . . . Impact Weapon . | . . . . . Slashing Weapon . | . . . . . Piercing Weapon . | . . . . . Special Melee Weapon . | . . . . . Unidentified Prototypes 4 | . . . 4 . Parts Lost 32 | . . 6 19 7 Power 9 | . . 2 6 1 Propulsion 10 | . . 2 7 1 Utility 3 | . . . 1 2 Weapon 10 | . . 2 5 3 Highest Loss Streak 7 | . . 3 6 7 To Critical Strikes . | . . . . . Average Slot Usage (%) 80 | . 98 89 78 62 Engine 10 | . 14 10 11 3 Treads 12 | . 28 25 7 . Leg 2 | . . . 2 4 Hover 1 | . . . 2 . Device 15 | . 12 20 15 8 Storage 7 | . 14 11 7 . Processor 11 | . . . 12 33 Energy Gun 17 | . 28 22 15 8 Naked Turns . | . . . . . Heaviest Build 39 | 12 28 35 39 16 Greatest Support 60 | 40 40 60 40 10 Greatest Overweight (x) 10 | 1 . . 10 1 Average Overweight (x) . | . . . . . Largest Inventory Capacity 15 | 8 15 15 15 5 Average Capacity 12 | 7 11 15 13 5 Most Carried 15 | 7 9 15 15 4 Average Carried 10 | 2 6 13 12 1 Final Capacity 15 | 8 15 15 5 5 Final Carried 14 | 2 9 14 5 . Class Distribution -------------------- 97% | Mutant Dominant Class ---------------- Mutant | -10/Materials Mutant | -9/Materials Mutant | -8/Materials Mutant | -7/Factory Resources | -11 -10 -9 -8 -7 ----------- Run | Jun Mat Mat Mat Fac Matter Collected 663 | 136 50 163 265 49 Remotely . | . . . . . Salvage Created 2340 | . 50 644 1588 58 Parts 116 | . 3 44 65 4 Haulers Intercepted 3 | . . . 3 . Recyclers Shooed 4 | . . 1 3 . Parts Field Recycled . | . . . . . Retrieved Matter . | . . . . . Parts Self-Destructed . | . . . . . Prevented . | . . . . . Kills | -11 -10 -9 -8 -7 ------- Run | Jun Mat Mat Mat Fac Combat Hostiles Destroyed 36 | . 3 12 20 1 Melee 1 | . 1 . . . Guns 33 | . 2 11 19 1 AOE 1 | . . . 1 . Classes Destroyed 10 | . 2 5 2 1 Worker 2 | . . 1 1 . Tunneler 1 | . . . . 1 Hauler 3 | . . . 3 . Recycler 10 | . . 2 8 . Mechanic 1 | . . . 1 . Watcher 5 | . 1 1 3 . Swarmer 15 | . 3 4 7 1 Grunt 13 | . . 4 9 . Duelist 3 | . . 1 2 . Sentry 5 | . . 3 2 . Best Kill Streak 7 | . 3 7 5 2 Combat Bots Only 6 | . 3 6 4 1 Max Kills in Single Turn 2 | . 1 1 2 1 Gunslinging . | . . . . . Exploded 1 | . . . 1 . Melee 1 | . 1 . . . Uniques/NPCs Destroyed . | . . . . . Combat | -11 -10 -9 -8 -7 -------- Run | Jun Mat Mat Mat Fac Damage Taken 3724 | . 100 828 1595 1201 Core 1199 | . 18 109 363 709 Absorbed by Shields . | . . . . . Core Remaining (%) 74 | 100 92 72 34 . Volleys Fired 162 | . 8 45 99 10 Largest 2 | . 2 2 2 2 Hottest 130 | . 100 100 130 100 Shots Fired 302 | . 16 89 182 15 Gun 302 | . 16 89 182 15 Cannon . | . . . . . Launcher . | . . . . . Special . | . . . . . Kinetic 3 | . . . . 3 Thermal 215 | . 16 36 161 2 Explosive . | . . . . . Electromagnetic 84 | . . 53 21 10 Robot Hit Streak 12 | . 4 10 12 7 Robot Miss Streak 5 | . 2 5 5 2 Penetration Max . | . . . . . Secondary Targets 2 | . . 1 1 . Max Gunslinging Chain 1 | . . 1 1 . Shots Hit Robots 194 | . 9 51 121 13 Core Hits 93 | . 3 22 61 7 Critical Kills . | . . . . . Critical Parts Destroyed . | . . . . . Critical Strikes 10 | . 1 1 8 . Burn 10 | . 1 1 8 . Melee Attacks . | . . . . . Impact . | . . . . . Slashing . | . . . . . Piercing . | . . . . . Sneak Attacks . | . . . . . Combat Hostiles . | . . . . . Follow-up Attacks . | . . . . . Damage Inflicted 3559 | . 123 800 2450 186 Guns 3209 | . 114 769 2175 151 Cannons . | . . . . . Explosions 299 | . . 24 275 . Melee . | . . . . . Ramming 51 | . 9 7 . 35 Kinetic 37 | . . . . 37 Thermal 2490 | . 114 263 2084 29 Explosive . | . . . . . Electromagnetic 981 | . . 530 366 85 Impact . | . . . . . Slashing . | . . . . . Piercing . | . . . . . Highest Corruption 5 | . . . . 5 Average Corruption 2 | . . . . 2 Corruption Purged . | . . . . . Corruption Blocked . | . . . . . Effects 4 | . . . . 4 Matter Fused 1 | . . . . 1 Heat Flow Errors 2 | . . . . 2 Data Loss (minor) 1 | . . . . 1 Overload Shots . | . . . . . Overflow Damage 104 | . . . 72 32 Projectiles . | . . . . . Explosions 104 | . . . 72 32 Melee . | . . . . . Knockbacks . | . . . . . Impact . | . . . . . Kinetic . | . . . . . Secondary . | . . . . . Self-Inflicted Damage 218 | . . 24 147 47 Shots 5 | . . 1 3 1 Rammed 12 | . 3 2 . 7 Targets Rammed 19 | . 4 2 . 13 Kicked 6 | . . . . 6 Crushed 1 | . 1 . . . Highest Temperature 324 | . 117 199 324 191 Average Temperature 97 | . 50 78 112 72 Received Heat Transfer 1005 | . . 201 612 192 Siege Activations . | . . . . . Robots Corrupted 1 | . . 1 . . Combat Hostiles 1 | . . 1 . . Parts Fried 4 | . . 1 1 2 Impact Corruptions . | . . . . . Robots Melted . | . . . . . Combat Hostiles . | . . . . . Parts Melted 15 | . 1 3 11 . Heat Transferred 6135 | . 407 827 4827 74 Parts Sabotaged . | . . . . . Parts Stolen . | . . . . . Parts Stripped . | . . . . . Power Chain Reactions 6 | . . 1 4 1 Missiles Intercepted . | . . . . . Alert | -11 -10 -9 -8 -7 ------- Run | Jun Mat Mat Mat Fac Peak Influence 334 | . 104 334 232 202 Initial 81 | . . 43 62 81 Average 126 | . 63 167 131 119 Maximum Alert Level 1 | . . 1 1 1 Low Security (%) 77 | 100 100 52 76 98 Level 1 22 | . . 47 23 1 Level 2 . | . . . . . Level 3 . | . . . . . Level 4 . | . . . . . Level 5 . | . . . . . High Security . | . . . . . Max Security . | . . . . . Squads Dispatched 3 | . . . 1 2 Investigation 1 | . . . . 1 Extermination . | . . . . . Reinforcement 2 | . . . 1 1 Assault . | . . . . . Garrison . | . . . . . Intercept . | . . . . . Searches Triggered . | . . . . . Construction Impeded . | . . . . . Haulers Reinforced . | . . . . . Active Scanning Responses . | . . . . . Cargo Convoy Interrupts . | . . . . . Stealth | -11 -10 -9 -8 -7 --------- Run | Jun Mat Mat Mat Fac Distress Signals 3 | . . . 3 . Communications Jammed . | . . . . . Distress Signals . | . . . . . Times Spotted 70 | . 5 17 32 16 Peak Tracking Total 8 | . 3 5 7 8 Tactical Retreats 8 | . . 1 4 3 Traps | -11 -10 -9 -8 -7 ------- Run | Jun Mat Mat Mat Fac Traps Triggered 1 | . . 1 . . Indirectly . | . . . . . Trap Hack Attempts . | . . . . . Triggered . | . . . . . Disarmed . | . . . . . Reprogrammed . | . . . . . Reused . | . . . . . Traps Extracted . | . . . . . Installed . | . . . . . Triggered 1 | . . 1 . . Machines | -11 -10 -9 -8 -7 ---------- Run | Jun Mat Mat Mat Fac Machines Disabled 2 | . . . 2 . Max in Single Turn 2 | . . . 2 . Machines Repaired . | . . . . . Machines Sabotaged . | . . . . . Overloaded Fab Kills . | . . . . . Hacking | -11 -10 -9 -8 -7 --------- Run | Jun Mat Mat Mat Fac Machines Accessed 11 | . 4 3 2 2 Terminals 7 | . 3 1 2 1 Fabricators . | . . . . . Repair Stations . | . . . . . Recycling Units 4 | . 1 2 . 1 Scanalyzers . | . . . . . Garrison Access . | . . . . . Total Hacks 19 | . 9 3 3 4 Successful 9 | . 4 2 3 . Failed 10 | . 5 1 . 4 Catastrophic 1 | . . . . 1 Database Lockouts . | . . . . . Manual . | . . . . . Terminals 13 | . 6 1 3 3 Fabricators . | . . . . . Repair Stations . | . . . . . Recycling Units 6 | . 3 2 . 1 Scanalyzers . | . . . . . Garrison Access . | . . . . . Terminal Hacks 6 | . 3 . 3 . Record 3 | . 2 . 1 . Locate Traps 2 | . 1 . 1 . Zone Layout 1 | . . . 1 . Fabricator Hacks . | . . . . . Repair Station Hacks . | . . . . . Recycling Unit Hacks 3 | . 1 2 . . Process 1 | . 1 . . . Retrieve Components 2 | . . 2 . . Scanalyzer . | . . . . . Garrison Access Hacks . | . . . . . Unauthorized Hacks . | . . . . . Terminals . | . . . . . Fabricators . | . . . . . Repair Stations . | . . . . . Recycling Units . | . . . . . Scanalyzers . | . . . . . Garrison Access . | . . . . . Data Cores Recovered . | . . . . . Used . | . . . . . Hacking Detections 9 | . 3 3 1 2 Full Trace Events 1 | . . . . 1 Feedback Events . | . . . . . Feedback Blocked . | . . . . . Robot Schematics Acquired . | . . . . . Robots Built . | . . . . . Authchips . | . . . . . Time . | . . . . . Total Robot Build Rating . | . . . . . Part Schematics Acquired . | . . . . . Parts Built . | . . . . . Authchips . | . . . . . Time . | . . . . . Total Part Build Rating . | . . . . . Parts Repaired . | . . . . . Time . | . . . . . Parts Recycled . | . . . . . Recycled Matter 36 | . 36 . . . Retrieved Matter . | . . . . . Retrieved Components 8 | . . 8 . . Parts Scanalyzed . | . . . . . Part Schematics Acquired . | . . . . . Parts Damaged . | . . . . . Bothacking | -11 -10 -9 -8 -7 ------------ Run | Jun Mat Mat Mat Fac Used RIF Installer . | . . . . . Robots Hacked . | . . . . . Non-combat . | . . . . . Combat . | . . . . . Robot Hacks Applied . | . . . . . Relay Couplers Released . | . . . . . Fabnet Peak Effective % . | . . . . . Robots Rewired . | . . . . . Allies Hacked . | . . . . . Hacks Repelled . | . . . . . Allies | -11 -10 -9 -8 -7 -------- Run | Jun Mat Mat Mat Fac Total Allies . | . . . . . Largest Group . | . . . . . Highest-Rated Group . | . . . . . Highest-Rated Ally . | . . . . . Total Orders . | . . . . . Ally Attacks . | . . . . . Total Damage . | . . . . . Kills . | . . . . . Allies Corrupted . | . . . . . Allies Melted . | . . . . . Intel | -11 -10 -9 -8 -7 ------- Run | Jun Mat Mat Mat Fac Robot Analysis Total . | . . . . . Derelict Logs Recovered . | . . . . . Drone Launches . | . . . . . Drone Recoveries . | . . . . . Exploration | -11 -10 -9 -8 -7 ------------- Run | Jun Mat Mat Mat Fac Turns Passed 2558 | 61 282 504 1390 321 Spaces Moved 1055 | 38 150 210 403 254 Core 176 | 20 . . 3 153 Treads 572 | 18 150 210 194 . Legs 210 | . . . 109 101 Wheels 38 | . . . 38 . Hover 59 | . . . 59 . Flight . | . . . . . Fastest Speed 50 | 50 160 160 120 50 Average Speed 152 | 125 160 160 178 104 Slowest Speed 550 | 160 160 160 550 190 Overloaded Moves . | . . . . . Propulsion Burnouts . | . . . . . Robots Hopped . | . . . . . Cave-ins Triggered . | . . . . . Exploration Rate (%) 18 | 3 23 25 32 9 Regions Visited 4 Branch Regions . Pre-discovered Areas . | . . . . . Known Exits Taken 1 | . . . 1 . Unknown Exits Taken 3 | 1 1 1 . . Scrap Searched . | . . . . . Spaces Dug . | . . . . . Terrain Destroyed 47 | . . 3 38 6 Melee . | . . . . . Projectile . | . . . . . AOE 47 | . . 3 38 6 Terrain Rammed . | . . . . . Walls Destroyed . | . . . . . Machines Disabled . | . . . . . Actions | -11 -10 -9 -8 -7 --------- Run | Jun Mat Mat Mat Fac Total 1701 | 51 173 287 895 295 Wait 325 | . 2 9 303 11 Move 1051 | 37 149 209 402 254 Hop . | . . . . . Pick Up 47 | 8 8 11 20 . Fast Attach 22 | . . 1 21 . Attach 35 | 6 1 6 17 5 Detach . | . . . . . Swap 7 | . 1 3 3 . Drop 33 | . . 1 30 2 Fire 162 | . 8 45 99 10 Melee . | . . . . . Ram 7 | . . . . 7 Kick 6 | . . . . 6 Crush 6 | . 4 2 . . Escape Stasis . | . . . . . Rewire . | . . . . . Trap . | . . . . . Miscellaneous . | . . . . . Route ------- -11/Junkyard -10/Materials -9/Materials -8/Materials -7/Factory History --------- Turn | Location | Event 21 | -11/Junkyard | Discovered new exit (range 14) 62 | -11/Junkyard | Entered Materials 278 | -10/Materials | Discovered new exit (range 16) 300 | -10/Materials | Build established: Mutant 344 | -10/Materials | Entered another Materials area 344 | -9/Materials | Evolved 2 slots: Propulsion x1, Utility x1 743 | -9/Materials | Lost 3 parts (1p1n1w) 826 | -9/Materials | Discovered new exit (range 8) 848 | -9/Materials | Entered another Materials area 848 | -8/Materials | Evolved 2 slots: Power x1, Utility x1 1069 | -8/Materials | Lost 6 parts (3p1n2w) 1573 | -8/Materials | Lost 3 parts (2n1u) 1951 | -8/Materials | Core integrity fell below 50% 2002 | -8/Materials | Lost 5 parts (1p2n2w) 2151 | -8/Materials | Discovered new exit (range 8) 2236 | -8/Materials | Identified exit to Factory 2238 | -8/Materials | Entered Factory 2238 | -7/Factory | Evolved 2 slots: Utility x2 2508 | -7/Factory | Lost 7 parts (1p1n2u3w) 2520 | -7/Factory | Core integrity fell below 50% 2556 | -7/Factory | Core integrity fell below 20% 2559 | -7/Factory | Destroyed by G-47 Trooper with Particle Gun Last Messages --------------- 02458_ K-01 Serf collects debris. 02459_ U-05 Engineer lays Concrete. 02477_ Kinecellerator destroyed. 02486_ System corrupted: Component data lost. 02501_ Critical hit (Burn: +37). 02530_ System corrupted: Heat flow error (+216). 02530_ Connecting with DSF Access... 02530_ ALERT: Suspicious activity at Terminal F022. Dispatching Investigation squad. 02534_ Dropped Assault Rifle. 02534_ Dropped Disposable Heat Sink. 02551_ Slammed into S-27 Virus. 02552_ System corrupted: Matter fused (-9). 02552_ Slammed into S-27 Virus. 02552_ Imp. Signal Interpreter broken. 02552_ Destabilizing: Short circuit. 02555_ Slammed into P-60 Hacker. 02556_ Slammed into G-50 Soldier. 02556_ Destabilizing: Core damaged (-7). 02557_ Slammed into G-47 Trooper. Map ----- +----------------------------------------------------+ | ???????????# #???# #???? | | ???????????# #???# #???? | | ???????????##############???# #???? | | ?????????????????############/## #???? | | ??????????????# # #???? | | ??????????????# """"""""" # #???? | | ??????????????# ! # #???? | | ??????????????# """"""""" # #???? | | ??????????????# # ##### | | ??????????????# ! """"""""" # # | | ??????????????# + # | | ??????????????# """"""""" # # | | ??????????????????? # # | | ?????????####################### # | | ?????????# # [ # # | | ?????????# # """" # # | | ?????????# # !! """" # # | | ?????????# / # ! """" + + | | ?????????# # """" # ##### | | ?????????# # """" # #???? | | ?????????# # ! """" # ##### | | ?????????########+#### # | | ??????????????# ############ | | ??????????????# ############ | | ??????????????# [! | | ??????????????# @gg############ | | ??????????????# g #??????????#### T##### | | ??????????????###g####????????????####???? | | ??????????????#!p #???????????????????? | | ??????????????# g""""#???????????????????? | | ??????????????# """"#???????????????????? | | ??????????????# s""""#???????????????????? | | ??????????????# """"#???????????????????? | | ??????????????#! #???????????????????? | | ??????????????########???????????????????? | | ?????????????????????????????????????????? | | ?????????????????????????????????????????? | | ?????????????????????????????????????????? | | ?????????????????????????????????????????? | | ?????????????????????????????????????????? | | ?????????????????????????????????????????? | | ?????????????????????????????????????????? | | ?????????????????????????????????????????? | | ?????????????????????????????????????????? | | ?????????????????????????????????????????? | | ?????????????????????????????????????????? | | ?????????????????????????????????????????? | | ?????????????????????????????????????????? | | | | | +----------------------------------------------------+ Best States ------------- Heat Dissipation 34 Coolant Potential 100 Energy Generation 19 Energy Capacity 305 Matter Stores 300 Matter Capacity 300 Sight Range 20 Robot Scan Range 15 Terrain Scan Density 85 Evasion (%) 55 Targeting Accuracy 13 Recoil Reduction 3 Kinecelleration 30 Item Schematics ----------------- None Robot Schematics ------------------ None Fabricated ------------ Nothing Alien Tech Used ----------------- None Achievements -------------- None Challenges ------------ None Game ------ Seed LauncherZhirovStorage Manual? 0 Play Time 00:31:31 Cumulative 27.2 hours Start 2023.05.17 @ 23:24:04 End 2023.05.17 @ 23:51:52 Sessions 1 Manual Loads 0 Difficulty Rogue Special Mode None Game No. 34 Rogue 34 Adventurer 0 Explorer 0 Win Type - Total 0 Types 0/0/0/0/0/0/0/0/0 Lore% 16 Gallery% 39 Achievement% 26 Wizard Run 0 Options --------- ASCII 1 Keyboard 0 Movement Mouse Keybinds 0 Fullscreen 1 Font 18/X11 Map View 76x50 Tactical HUD 1 Map Filters NONE Filters NONE Steam 1 RUN: f18ccef2-8fff-4de0-87e9-f2b313c0d56f